Cogmind - Beta 12 @@@ ROGUE MODE // 2023.09.14 @ 09:27:20 Player: Trantor Result: Destroyed by D-53 Grenadier with Mini Grenade Launcher Performance ------------- Evolutions (0) 0 Regions Visited (2) 400 Robots Destroyed (23) 115 Value Destroyed (465) 465 Prototype IDs (4) 80 Alien Tech Used (0) 0 Bonus (-52) -52 TOTAL SCORE: 1008 Bonus ------- Friendly Fire -52 Cogmind --------- Core Integrity 0/250 Matter 258/300 Energy 85/100 System Corruption 0% Temperature Cool (0) Movement Walking (330) Ox3 Location -10/Mines Parts ------- > --- POWER (1) -------- (None) > --- PROPULSION (2) --- Aluminum Leg > --- UTILITY (2) ------ Medium Storage Unit Large Storage Unit > --- WEAPON (2) ------- Heavy Assault Rifle Grenade Launcher > --- INVENTORY (15) --- Improved Ion Engine Aluminum Leg Large Matter Pod (150) Terrain Scan Processor EM Pulse Gun Heavy Assault Rifle Heavy Assault Rifle Makeshift Shrapnel Gun Datajack Peak State ------------ > --- POWER ------------ Improved Ion Engine > --- PROPULSION ------- Aluminum Leg Aluminum Leg > --- UTILITY ---------- Small Storage Unit Signal Interpreter > --- WEAPON ----------- Heavy Assault Rifle Heavy Assault Rifle > --- INVENTORY -------- Improved Ion Engine Aluminum Leg Wheel Large Matter Pod EM Pulse Gun Heavy Assault Rifle Grenade Launcher Datajack [Rating: 11] Favorites ----------- Power Improved Ion Engine Engine Improved Ion Engine Propulsion Aluminum Leg Leg Aluminum Leg Utility Medium Storage Unit Storage Medium Storage Unit Processor Signal Interpreter Protection Light Armor Plating Weapon Heavy Assault Rifle Energy Gun EM Pulse Gun Ballistic Gun Heavy Assault Rifle Launcher Grenade Launcher Build | -11 -10 -10 ------- Run | Jun Mat Min Slots Evolved . | . . . Power . | . . . Propulsion . | . . . Utility . | . . . Weapon . | . . . Parts Attached 14 | . 12 2 Power 2 | . 2 . Engine 2 | . 2 . Core . | . . . Reactor . | . . . Propulsion 5 | . 5 . Treads . | . . . Leg 5 | . 5 . Wheel . | . . . Hover . | . . . Flight . | . . . Utility 4 | . 3 1 Device . | . . . Storage 2 | . 1 1 Processor 1 | . 1 . Hackware . | . . . Protection 1 | . 1 . Artifact . | . . . Weapon 3 | . 2 1 Energy Gun . | . . . Energy Cannon . | . . . Ballistic Gun 2 | . 2 . Ballistic Cannon . | . . . Launcher 1 | . . 1 Special Weapon . | . . . Impact Weapon . | . . . Slashing Weapon . | . . . Piercing Weapon . | . . . Special Melee Weapon . | . . . Unidentified Prototypes . | . . . Parts Lost 3 | . . 3 Power 1 | . . 1 Propulsion 1 | . . 1 Utility 1 | . . 1 Weapon . | . . . Highest Loss Streak 2 | . . 2 To Critical Strikes . | . . . Average Slot Usage (%) 97 | . 97 92 Engine 14 | . 14 14 Leg 28 | . 28 28 Storage 14 | . 14 14 Processor 1 | . 2 . Protection 9 | . 10 7 Energy Gun 1 | . 1 . Ballistic Gun 25 | . 26 15 Launcher 1 | . . 12 Naked Turns . | . . . Heaviest Build 26 | 13 26 26 Greatest Support 20 | 20 20 20 Greatest Overweight (x) 1 | . 1 1 Average Overweight (x) . | . . . Largest Inventory Capacity 15 | . 10 15 Average Capacity 9 | . 9 10 Most Carried 10 | . 10 10 Average Carried 9 | . 9 9 Final Capacity 15 | 8 10 15 Final Carried 10 | 6 10 9 Class Distribution -------------------- 100% | Mutant Dominant Class ---------------- Mutant | -10/Materials Mutant | -10/Mines Resources | -11 -10 -10 ----------- Run | Jun Mat Min Matter Collected 943 | 200 707 36 Remotely . | . . . Salvage Created 712 | . 689 23 Parts 56 | . 56 . Haulers Intercepted 2 | . 2 . Recyclers Shooed 2 | . 2 . Parts Field Recycled . | . . . Retrieved Matter . | . . . Parts Self-Destructed . | . . . Prevented . | . . . Kills | -11 -10 -10 ------- Run | Jun Mat Min Combat Hostiles Destroyed 22 | . 16 6 Guns 15 | . 15 . AOE 7 | . 1 6 Classes Destroyed 7 | . 6 1 Worker 1 | . 1 . Hauler 2 | . 2 . Operator 2 | . 2 . Watcher 2 | . 2 . Swarmer 7 | . 7 . Grunt 9 | . 9 . Assembled 6 | . . 6 Best Kill Streak 4 | . 4 4 Combat Bots Only 4 | . 3 4 Max Kills in Single Turn 2 | . 2 2 Gunslinging . | . . . Exploded 2 | . 1 2 Melee . | . . . Uniques/NPCs Destroyed . | . . . Combat | -11 -10 -10 -------- Run | Jun Mat Min Damage Taken 1152 | . 694 458 Core 264 | . 122 142 Absorbed by Shields . | . . . Core Remaining (%) 100 | 100 . . Volleys Fired 91 | . 84 7 Largest 2 | . 2 1 Hottest 60 | . 60 30 Shots Fired 175 | . 168 7 Gun 168 | . 168 . Cannon . | . . . Launcher 7 | . . 7 Special . | . . . Kinetic 156 | . 156 . Thermal . | . . . Explosive 7 | . . 7 Electromagnetic 12 | . 12 . Robot Hit Streak 12 | . 12 1 Robot Miss Streak 4 | . 4 1 Penetration Max . | . . . Secondary Targets . | . . . Shots Hit Robots 85 | . 84 1 Core Hits 43 | . 34 9 Critical Kills 1 | . 1 . Critical Parts Destroyed . | . . . Critical Strikes 2 | . 2 . Destroy 1 | . 1 . Corrupt 1 | . 1 . Melee Attacks . | . . . Impact . | . . . Slashing . | . . . Piercing . | . . . Sneak Attacks . | . . . Combat Hostiles . | . . . Follow-up Attacks . | . . . Damage Inflicted 1652 | . 1310 342 Guns 1244 | . 1244 . Cannons . | . . . Explosions 398 | . 56 342 Melee . | . . . Ramming 10 | . 10 . Kinetic 1112 | . 1112 . Thermal 56 | . 56 . Explosive 342 | . . 342 Electromagnetic 132 | . 132 . Impact . | . . . Slashing . | . . . Piercing . | . . . Highest Corruption . | . . . Average Corruption . | . . . Corruption Purged . | . . . Corruption Blocked . | . . . Overload Shots . | . . . Overflow Damage 21 | . . 21 Projectiles . | . . . Explosions 21 | . . 21 Melee . | . . . Knockbacks . | . . . Impact . | . . . Kinetic . | . . . Secondary . | . . . Self-Inflicted Damage 27 | . . 27 Shots 2 | . . 2 Rammed . | . . . Targets Rammed 1 | . 1 . Kicked 1 | . 1 . Crushed . | . . . Highest Temperature 48 | . 48 . Average Temperature 18 | . 18 . Received Heat Transfer 210 | . 210 . Siege Activations . | . . . Robots Corrupted . | . . . Combat Hostiles . | . . . Parts Fried . | . . . Impact Corruptions . | . . . Robots Melted . | . . . Combat Hostiles . | . . . Parts Melted . | . . . Heat Transferred 100 | . 100 . Parts Sabotaged . | . . . Parts Stolen . | . . . Parts Stripped . | . . . Power Chain Reactions 1 | . 1 . Missiles Intercepted . | . . . Alert | -11 -10 -10 ------- Run | Jun Mat Min Peak Influence 206 | . 206 30 Initial 22 | . . 22 Average 58 | . 62 21 Maximum Alert Level 1 | . 1 . Low Security (%) 97 | . 96 100 Level 1 2 | . 3 . Level 2 . | . . . Level 3 . | . . . Level 4 . | . . . Level 5 . | . . . High Security . | . . . Max Security . | . . . Squads Dispatched 4 | . 4 . Investigation 3 | . 3 . Extermination . | . . . Reinforcement 1 | . 1 . Assault . | . . . Garrison . | . . . Intercept . | . . . Searches Triggered . | . . . Construction Impeded . | . . . Haulers Reinforced . | . . . Active Scanning Responses . | . . . Cargo Convoy Interrupts . | . . . Stealth | -11 -10 -10 --------- Run | Jun Mat Min Distress Signals 1 | . 1 . Communications Jammed . | . . . Distress Signals . | . . . Times Spotted 41 | . 30 11 Peak Tracking Total 4 | . 3 4 Tactical Retreats 1 | . . 1 Traps | -11 -10 -10 ------- Run | Jun Mat Min Traps Triggered 1 | . 1 . Indirectly . | . . . Trap Hack Attempts . | . . . Triggered . | . . . Disarmed . | . . . Reprogrammed . | . . . Reused . | . . . Traps Extracted . | . . . Installed . | . . . Triggered . | . . . Machines | -11 -10 -10 ---------- Run | Jun Mat Min Machines Disabled 2 | . 2 . Max in Single Turn 1 | . 1 . Machines Repaired . | . . . Machines Sabotaged . | . . . Overloaded Fab Kills . | . . . Hacking | -11 -10 -10 --------- Run | Jun Mat Min Machines Accessed 7 | . 7 . Terminals 7 | . 7 . Fabricators . | . . . Repair Stations . | . . . Recycling Units . | . . . Scanalyzers . | . . . Garrison Access . | . . . Total Hacks 22 | . 22 . Successful 12 | . 12 . Failed 10 | . 10 . Catastrophic . | . . . Database Lockouts . | . . . Manual 10 | . 10 . Terminals 22 | . 22 . Fabricators . | . . . Repair Stations . | . . . Recycling Units . | . . . Scanalyzers . | . . . Garrison Access . | . . . Terminal Hacks 7 | . 7 . Record 1 | . 1 . Robot Analysis 2 | . 2 . Prototype ID Bank 2 | . 2 . Unreport Threat 1 | . 1 . Patrol Status 1 | . 1 . Fabricator Hacks . | . . . Repair Station Hacks . | . . . Recycling Unit Hacks . | . . . Scanalyzer . | . . . Garrison Access Hacks . | . . . Unauthorized Hacks 5 | . 5 . Terminals 5 | . 5 . Botnet 5 | . 5 . Fabricators . | . . . Repair Stations . | . . . Recycling Units . | . . . Scanalyzers . | . . . Garrison Access . | . . . Data Cores Recovered 1 | . 1 . Used . | . . . Hacking Detections 7 | . 7 . Full Trace Events 3 | . 3 . Feedback Events . | . . . Feedback Blocked . | . . . Robot Schematics Acquired . | . . . Robots Built . | . . . Authchips . | . . . Time . | . . . Total Robot Build Rating . | . . . Part Schematics Acquired . | . . . Parts Built . | . . . Authchips . | . . . Time . | . . . Total Part Build Rating . | . . . Parts Repaired . | . . . Time . | . . . Parts Recycled . | . . . Recycled Matter . | . . . Retrieved Matter . | . . . Retrieved Components . | . . . Parts Scanalyzed . | . . . Part Schematics Acquired . | . . . Parts Damaged . | . . . Bothacking | -11 -10 -10 ------------ Run | Jun Mat Min Used RIF Installer . | . . . Robots Hacked . | . . . Non-combat . | . . . Combat . | . . . Robot Hacks Applied . | . . . Relay Couplers Released . | . . . Fabnet Peak Effective % . | . . . Robots Rewired . | . . . Allies Hacked . | . . . Hacks Repelled . | . . . Allies | -11 -10 -10 -------- Run | Jun Mat Min Total Allies 1 | . . 1 Largest Group 1 | . . 1 Highest-Rated Group 31 | . . 31 Highest-Rated Ally 31 | . . 31 Total Orders . | . . . Ally Attacks 3 | . . 3 Total Damage 43 | . . 43 Kills . | . . . Allies Corrupted . | . . . Allies Melted . | . . . Intel | -11 -10 -10 ------- Run | Jun Mat Min Robot Analysis Total 2 | . 2 . Derelict Logs Recovered 1 | . . 1 Drone Launches . | . . . Drone Recoveries . | . . . Exploration | -11 -10 -10 ------------- Run | Jun Mat Min Turns Passed 2675 | . 2383 292 Spaces Moved 1336 | 1 1191 144 Core . | . . . Treads . | . . . Legs 1336 | 1 1191 144 Wheels . | . . . Hover . | . . . Flight . | . . . Fastest Speed 120 | 120 120 120 Average Speed 176 | 120 175 189 Slowest Speed 190 | 120 190 190 Overloaded Moves . | . . . Propulsion Burnouts . | . . . Robots Hopped . | . . . Cave-ins Triggered . | . . . Exploration Rate (%) 43 | 2 99 28 Regions Visited 2 Branch Regions 1 Pre-discovered Areas . | . . . Known Exits Taken . | . . . Unknown Exits Taken 2 | 1 1 . Scrap Searched 1 | . . 1 Spaces Dug . | . . . Terrain Destroyed 46 | . . 46 Melee . | . . . Projectile . | . . . AOE 46 | . . 46 Terrain Rammed . | . . . Walls Destroyed . | . . . Machines Disabled . | . . . Actions | -11 -10 -10 --------- Run | Jun Mat Min Total 1486 | . 1329 157 Wait 19 | . 17 2 Move 1334 | . 1190 144 Hop . | . . . Pick Up 10 | . 9 1 Fast Attach 3 | . 3 . Attach 1 | . . 1 Detach 1 | . 1 . Swap 10 | . 9 1 Drop 16 | . 15 1 Fire 91 | . 84 7 Melee . | . . . Ram . | . . . Kick 1 | . 1 . Crush . | . . . Escape Stasis . | . . . Rewire . | . . . Trap . | . . . Miscellaneous . | . . . Route ------- -11/Junkyard -10/Materials (discovered 5 exits: [*Mat x3] / [*Min x2]) -10/Mines History --------- Turn | Location | Event 1 | -11/Junkyard | Discovered new exit (range 0) 1 | -11/Junkyard | Entered Materials 323 | -10/Materials | Build established: Mutant 461 | -10/Materials | Discovered new exit (range 9) 667 | -10/Materials | Discovered new exit (range 9) 1461 | -10/Materials | Discovered new exit (range 9) 1629 | -10/Materials | Discovered new exit (range 3) 1963 | -10/Materials | Discovered new exit (range 12) 2384 | -10/Materials | Entered Mines 2387 | -10/Mines | Received a Mining Laser from a helpful Derelict 2406 | -10/Mines | Assembled infested the area 2411 | -10/Mines | Assisted by a Guerilla fighting off Assembled 2470 | -10/Mines | Learned 8 Materials zone layouts 2477 | -10/Mines | A weapon hastily lodged in a ceiling crevice suddenly fell to the ground 2666 | -10/Mines | Core integrity fell below 50% 2676 | -10/Mines | Core integrity fell below 20% 2676 | -10/Mines | Destroyed by D-53 Grenadier with Mini Grenade Launcher Last Messages --------------- 02516_ The unstable cave ceiling collapses. 02531_ Lgt. Armor Plating destroyed. 02531_ as-64525 destroyed. 02531_ as-21821 destroyed. 02537_ Acquired 9 matter. 02542_ R-06 Scavenger collects Hvy. Assault Rifle. 02543_ Acquired 4 matter. 02549_ The unstable cave ceiling collapses. 02550_ R-06 Scavenger collects Carbon-fiber Leg. 02554_ as-25617 destroyed. 02560_ as-68596 destroyed. 02560_ R-06 Scavenger destroyed. 02581_ Acquired 10 matter. 02634_ K-01 Serf collects debris. 02669_ as-26476 destroyed. 02671_ The unstable cave ceiling collapses. 02672_ K-01 Serf collects debris. 02672_ Imp. Ion Engine destroyed. 02674_ Aluminum Leg destroyed. 02675_ The unstable cave ceiling collapses. Map ----- +----------------------------------------------------+ | ????????? #????????????????????? | | ?????????# #????????????????????? | | ?????????# #????????????????????? | | ?????????# #????????????????????? | | ?????????# #????????????????????? | | ?????????# #####????????????????? | | ?????????# #????????????????? | | ?????????# ### #????????????????? | | ?????????# #?# #????????????????? | | ?????????# #?# #????????????????? | | ?????????# #?# #????????????????? | | ??????#### ### #####????????????? | | ?????## ## ##???????????? | | ?????# ku""" #???????????? | | ?????# """ ##??????????? | | ??????# d""" ##?????????? | | ??????## d ###???????? | | ??????## # ##??????? | | ?????## ### ###????? | | ?????# k#### #????? | | ?????# #?## ##????? | | ?????# ##??#### ##?????? | | ????## #?????# #??????? | | ????# #?????# # #??????? | | ????# #?????# # #??????? | | ????# # @ #?????# # #??????? | | ????## #?#####= # #??????? | | ?????# #?# ! # #??????? | | ?????# ##?# ! # ##?????? | | ?????### ##??# ##### ##????? | | ???????# ####?### #?## ###??? | | ??????? ?????# ### ##?? | | ???????##???### #### #?? | | ???????????## #?# #?? | | ???????????# ##?# #?? | | ??????????## ##??## ##?? | | ??????????# #????### #??? | | ?##???????# ##??????### | #??? | | ?# ?????# #????????## #??? | | ??# ??## #?????????# #??? | | ???# ## #????????## ##??? | | ?????# = ##??????####???? | | ?????## %= ##??????????? | | ??????# [ ##?????????? | | ??????# # #???? | | ?????# ### # ??? | | ?????# ?## ##### ????? | | ?????# ???## ##?????????? | | ?????## #????? ??????????? | | ??????###???????## #####?????????? | +----------------------------------------------------+ Best States ------------- Heat Dissipation 25 Energy Generation 12 Energy Capacity 265 Matter Stores 300 Matter Capacity 300 Sight Range 16 Terrain Scan Density 10 Armor Coverage 150 Evasion (%) 55 Item Schematics ----------------- None Robot Schematics ------------------ None Fabricated ------------ Nothing Alien Tech Used ----------------- None Achievements -------------- None Challenges ------------ None Game ------ Seed DisruptionHeartCycler Manual? 0 Play Time 00:17:37 Cumulative 203.6 hours Start 2023.09.14 @ 05:40:58 End 2023.09.14 @ 09:27:20 Sessions 1 Manual Loads 0 Difficulty Rogue Special Mode None Game No. 111 Rogue 67 Adventurer 44 Explorer 0 Win Type - Total 1 Types 1/0/0/0/0/0/0/0/0 Lore% 57 Gallery% 57 Achievement% 55 Wizard Run 0 Options --------- ASCII 0 Keyboard 1 Movement Vi Keybinds 1 Fullscreen 2 Font 18/X11Bold Map View 76x50 Tactical HUD 1 Map Filters NONE Filters NONE Steam 1 RUN: 9091ced7-b1ba-4822-80a1-5172164edf21